bitfinex/quotes_ETHUSD_20250909
["timestamp","ask_amount","ask_price","bid_price","bid_amount"]
[1757427551440,0.00100001,4326.9,4326.8,45.78421524]
[1757427551636,1e-08,4327.9,4327.8,2.31064282]
[1757427551854,1e-08,4327.9,4327.8,12.39481131]
[1757427552180,1e-08,4327.9,4327.8,44.19118995]
[1757427552363,1e-08,4327.9,4327.8,44.52130489]
[1757427552753,1e-08,4327.9,4327.8,44.40839404]
[1757427553585,1e-08,4327.9,4327.8,44.0782791]
[1757427554546,1e-08,4327.9,4327.8,39.6953791]
[1757427554854,1e-08,4327.9,4327.8,41.6957791]
[1757427555988,1e-08,4327.9,4327.8,41.9910791]
[1757427556188,1e-08,4327.9,4327.8,41.6957791]
[1757427556590,1e-08,4327.9,4327.8,41.9910791]
[1757427556777,1e-08,4327.9,4327.8,43.3808791]
[1757427556992,1e-08,4327.9,4327.8,44.18918995]
[1757427557596,0.00020001,4328.3,4328.2,2.31042927]
[1757427557801,0.00020001,4328.3,4328.2,42.09325238]
[1757427558096,0.00020001,4328.3,4328.2,44.21974809]
[1757427559011,1e-08,4328.8,4328.7,2.3101624]
[1757427559299,1e-08,4328.8,4328.7,41.2301624]
[1757427560253,0.75750001,4328.8,4328.7,41.2301624]
[1757427560508,0.75750001,4328.8,4328.7,43.33365481]
[1757427560859,0.30530001,4328.8,4328.7,43.33365481]
[1757427561057,1e-08,4328.8,4328.7,43.44885481]
[1757427561296,1e-08,4328.8,4328.7,40.74415481]
[1757427561503,1e-08,4328.8,4328.7,40.68005481]
[1757427561657,1e-08,4328.8,4328.7,40.33365481]
[1757427561999,1e-08,4328.9,4328.8,2.31010903]
[1757427562217,1e-08,4328.9,4328.8,36.56006332]
[1757427562503,1e-08,4328.9,4328.8,39.48845138]
[1757427562700,1e-08,4328.9,4328.8,39.02395138]
[1757427563557,1e-08,4328.9,4328.8,39.83226223]
[1757427564071,0.001,4330.1,4329.8,2.3095755]
[1757427564292,0.001,4330.1,4329.8,41.68749795]
[1757427564809,0.7975,4329.9,4329.8,37.54349795]
[1757427564968,0.7975,4329.9,4329.8,41.68649795]
[1757427565309,0.04,4329.9,4329.8,41.68649795]
[1757427565466,0.3453,4329.9,4329.8,41.68649795]
[1757427565880,0.04,4329.9,4329.8,41.68649795]
[1757427566509,0.04,4329.9,4329.8,43.7154088]
[1757427566711,1e-08,4329.9,4329.8,43.7154088]
[1757427567726,1e-08,4329.9,4329.8,44.1799088]
[1757427567930,1e-08,4329.9,4329.8,43.37159795]
[1757427570034,0.30530001,4329.9,4329.8,37.54349795]
[1757427570238,0.30530001,4329.9,4329.8,41.68349795]
[1757427570455,1e-08,4329.9,4329.8,41.68349795]
[1757427570593,2.22170001,4329.9,4329.8,41.2205755]
[1757427571028,0.75750001,4329.9,4329.8,41.2205755]
[1757427571331,1e-08,4329.9,4329.8,41.2205755]
[1757427571693,1e-08,4329.9,4329.8,41.3357755]
[1757427572332,0.76210001,4329.9,4329.8,38.2205755]
[1757427572497,0.76210001,4329.9,4329.8,41.2205755]
[1757427573139,0.30570001,4329.9,4329.8,41.2205755]
[1757427573297,1e-08,4329.9,4329.8,42.7301705]
[1757427573996,0.30570001,4329.9,4329.8,42.7301705]
[1757427574530,1e-08,4329.9,4329.8,42.7301705]
[1757427574918,1e-08,4329.9,4329.8,43.07398135]
[1757427575121,1e-08,4329.9,4329.8,43.37728135]
[1757427575327,1e-08,4329.9,4329.8,43.07398135]
[1757427575903,0.30570001,4329.9,4329.8,42.7301705]
[1757427576128,0.30570001,4329.9,4329.8,42.7271705]
[1757427576314,0.76210001,4329.9,4329.8,42.7271705]
[1757427576926,0.30570001,4329.9,4329.8,42.7271705]
[1757427577318,1e-08,4329.9,4329.8,42.7271705]
[1757427577730,1e-08,4329.9,4329.8,38.5911705]
[1757427577919,0.30570001,4329.9,4329.8,42.7251705]
[1757427578840,0.30570001,4329.9,4329.8,38.5911705]
[1757427579038,1e-08,4329.9,4329.8,42.7251705]
[1757427580141,0.76210001,4329.9,4329.8,41.2145755]
[1757427580953,0.30570001,4329.9,4329.8,41.2145755]
[1757427581152,1e-08,4329.9,4329.8,41.2145755]
[1757427581733,1e-08,4329.9,4329.8,41.55838635]
[1757427582359,1e-08,4329.9,4329.8,41.67358635]
[1757427582558,1e-08,4329.9,4329.8,43.94149432]
[1757427583468,0.00020001,4330.1,4330.0,2.30946882]
[1757427583666,1.42070001,4330.1,4330.0,3.0]
[1757427583958,0.30590001,4330.1,4330.0,9.44046882]
[1757427584163,0.76230001,4330.1,4330.0,9.44046882]
[1757427584663,0.76230001,4330.1,4330.0,4.131]
[1757427584664,2.18280001,4330.1,4330.0,4.131]
[1757427584966,2.18280001,4330.1,4329.8,1.772]
[1757427584967,0.792,4330.0,4329.8,1.772]
[1757427585264,0.792,4330.0,4329.9,7.13]
[1757427585265,2.6689,4330.0,4329.9,7.13]
[1757427585466,3.18891546,4330.0,4329.9,7.13]
[1757427585631,3.18891546,4330.0,4329.9,9.43952215]
[1757427586163,3.18891546,4330.0,4329.9,7.13]
[1757427586369,3.18891546,4330.0,4329.9,9.43952215]
[1757427586568,2.39691546,4330.0,4329.9,9.43952215]
[1757427586729,0.7621,4330.0,4329.9,9.43952215]
[1757427587247,0.97647031,4330.0,4329.9,9.43952215]
[1757427587547,2.39697031,4330.0,4329.9,7.13]
[1757427587745,3.18897031,4330.0,4329.9,3.0]
[1757427587948,3.18897031,4330.0,4329.9,7.129]
[1757427588131,3.18897031,4330.0,4329.8,1.774]
[1757427588132,0.792,4329.9,4329.8,1.774]
[1757427588313,0.792,4329.9,4329.8,5.902]
[1757427588314,1.46277031,4329.9,4329.8,5.902]
[1757427588517,1.46277031,4329.9,4329.8,1.774]
[1757427588518,3.18897031,4329.9,4329.8,1.774]
[1757427588718,3.18897031,4329.9,4329.8,5.902]
[1757427589164,5.49849246,4329.9,4329.8,5.902]
[1757427589356,3.7938251,4329.9,4329.8,5.902]
[1757427589739,6.10334725,4329.9,4329.8,0.002]
[1757427590327,3.7938251,4329.9,4329.8,0.002]
[1757427590824,3.18897031,4329.9,4329.8,6.4395755]
[1757427591145,0.7621,4329.9,4329.8,6.4395755]
[1757427591331,0.7621,4329.9,4329.8,4.13]
[1757427591654,2.9746,4329.9,4329.8,4.13]
[1757427591816,1.5541,4329.9,4329.8,4.13]
[1757427592372,2.9746,4329.9,4329.8,4.13]
[1757427592527,1.0977,4329.9,4329.8,6.4395755]
[1757427592722,0.792,4329.9,4329.8,6.4395755]
[1757427592927,1.0977,4329.9,4329.8,6.4395755]
[1757427593343,1.5541,4329.9,4329.8,6.4395755]
[1757427593859,1.5541,4329.9,4329.8,4.13]
[1757427593860,2.9746,4329.9,4329.8,4.13]
[1757427594062,3.50302062,4329.9,4329.8,4.13]
[1757427594656,5.81254277,4329.9,4329.8,4.127]
[1757427594837,6.0269227,4329.9,4329.8,0.002]
[1757427595039,6.15554638,4329.9,4329.8,0.002]
[1757427595248,6.0269227,4329.9,4329.8,0.002]
[1757427595562,6.02683418,4329.9,4329.8,0.002]
[1757427596127,5.81254277,4329.9,4329.8,0.002]
[1757427596457,6.02675883,4329.9,4329.8,0.002]
[1757427596644,5.81254277,4329.9,4329.8,0.002]
[1757427597061,3.50302062,4329.9,4329.8,0.002]
[1757427597579,5.81254277,4329.9,4329.8,0.002]
[1757427598468,3.50302062,4329.9,4329.8,0.002]
[1757427599559,5.81254277,4329.9,4329.8,0.002]
[1757427600894,6.15497725,4329.9,4329.8,0.002]
[1757427601885,6.02657674,4329.9,4329.8,0.002]
[1757427602075,6.15499195,4329.9,4329.8,0.002]
[1757427603094,6.1549299,4329.9,4329.8,0.002]
[1757427606604,10.14657674,4329.9,4329.8,0.002]
[1757427606804,10.14642731,4329.9,4329.8,0.002]
[1757427608293,3.14364277,4329.9,4329.8,0.002]
[1757427608488,3.07252215,4329.9,4329.8,0.002]
[1757427608709,3.08910209,4329.9,4329.8,0.002]
[1757427608989,5.24580209,4329.9,4329.8,0.002]
[1757427609302,5.57121383,4329.9,4329.8,0.002]
[1757427609450,6.77119754,4329.9,4329.8,0.002]
[1757427609780,6.77039754,4329.9,4329.8,0.002]
[1757427610178,10.88839754,4329.9,4329.8,0.002]
[1757427610662,9.52369754,4329.9,4329.8,0.002]
[1757427611485,10.88839754,4329.9,4329.8,0.002]
[1757427611797,9.52269754,4329.9,4329.8,0.002]
[1757427612180,4.51525066,4329.9,4329.8,0.002]
[1757427612381,3.60906695,4329.9,4329.8,0.002]
[1757427612590,3.10152215,4329.9,4329.8,0.002]
[1757427613315,4.09513836,4329.9,4329.8,0.002]
[1757427614222,4.20693399,4329.9,4329.8,0.002]
[1757427614513,3.73773399,4329.9,4329.8,0.002]
[1757427615196,3.75431393,4329.9,4329.8,0.002]
[1757427615397,4.69095363,4329.9,4329.8,0.002]
[1757427615706,6.50827369,4329.9,4329.8,0.002]
[1757427615868,6.63669036,4329.9,4329.8,0.002]
[1757427616594,9.38699036,4329.9,4329.8,0.002]
[1757427616975,8.91779036,4329.9,4329.8,0.002]
[1757427617196,9.38699036,4329.9,4329.8,0.002]
[1757427617371,10.75169036,4329.9,4329.8,0.002]
[1757427618084,10.75169036,4329.9,4329.3,0.002]
[1757427618085,0.792,4329.6,4329.3,0.002]
[1757427618290,3.10178888,4329.4,4329.3,0.002]
[1757427618484,3.73796834,4329.4,4329.3,0.002]
[1757427618690,5.57186834,4329.4,4329.3,0.002]
[1757427619393,4.20716834,4329.4,4329.3,0.002]
[1757427619594,0.1152,4329.3,4328.9,1e-08]
[1757427619800,3.10200231,4329.0,4328.9,1e-08]
[1757427619991,7.72178947,4329.0,4328.9,1e-08]
[1757427620226,9.68408177,4329.0,4328.9,1e-08]
[1757427621918,3.21725567,4328.9,4328.8,1e-08]
[1757427622119,4.64092406,4328.9,4328.8,1e-08]
[1757427622280,16.88862406,4328.9,4328.8,1e-08]
[1757427622484,16.87204412,4328.9,4328.8,1e-08]
[1757427623035,15.39214412,4328.9,4328.8,1e-08]
[1757427623186,9.77212885,4328.9,4328.8,0.29100001]
[1757427623392,9.77212885,4328.9,4328.8,1.74530001]
[1757427623393,7.46207318,4328.9,4328.8,1.74530001]
[1757427623588,7.12,4328.9,4328.8,2.17600001]
[1757427623819,2.30972374,4329.6,4328.8,2.17600001]
[1757427624026,4.11,4329.5,4328.9,1.885]
[1757427624332,4.11,4329.5,4329.4,0.291]
[1757427624333,7.21173553,4329.5,4329.4,0.291]
[1757427624485,6.547986,4329.5,4329.4,0.291]
[1757427624686,4.23825047,4329.5,4329.1,1.4543]
[1757427624914,4.902,4329.5,4329.4,0.291]
[1757427625117,6.54796484,4329.5,4329.4,1.7453]
[1757427625283,0.792,4329.3,4328.9,1.4543]
[1757427625490,7.21184223,4329.3,4329.2,0.291]
[1757427625912,7.21184223,4329.3,4328.8,1e-08]
[1757427625913,3.10205567,4328.9,4328.8,1e-08]
[1757427626111,0.792,4328.9,4328.8,1e-08]
[1757427626424,0.792,4328.9,4328.8,0.72170001]
[1757427626929,0.792,4328.9,4328.8,2.17600001]
[1757427627125,3.10205567,4328.9,4328.8,2.17600001]
[1757427627427,0.792,4328.9,4328.8,2.17600001]
[1757427627792,3.10205567,4328.9,4328.8,1e-08]
[1757427627995,8.94283928,4328.9,4328.8,1e-08]
[1757427628230,8.45705934,4328.9,4328.8,1e-08]
[1757427628933,8.16325934,4328.9,4328.8,1e-08]
[1757427629131,8.16225934,4328.9,4328.8,1.74530001]
[1757427629285,7.21005567,4328.9,4328.8,1.74530001]
[1757427629701,0.792,4328.9,4328.8,1.74530001]
[1757427629933,4.9,4328.9,4328.8,1.74530001]
[1757427630136,7.21005567,4328.9,4328.8,1.74530001]
[1757427630300,7.21005567,4328.9,4328.8,1e-08]
[1757427630693,8.162057,4328.9,4328.8,1e-08]
[1757427630891,9.820557,4328.9,4328.8,1e-08]
[1757427631104,9.26725197,4328.9,4328.8,1e-08]
[1757427632196,8.79705197,4328.9,4328.8,1e-08]
[1757427632511,9.27045197,4328.9,4328.8,1e-08]
[1757427633041,8.79705197,4328.9,4328.8,1e-08]
[1757427633932,9.27045197,4328.9,4328.8,1e-08]
[1757427634111,4.39625197,4328.9,4328.8,1e-08]
[1757427634318,8.51883191,4328.9,4328.8,1e-08]
[1757427634539,15.62225197,4328.9,4328.8,1e-08]
[1757427635269,15.91595197,4328.9,4328.8,1e-08]
[1757427635421,16.38935197,4328.9,4328.8,1e-08]
[1757427635771,16.38855197,4328.9,4328.8,1e-08]
[1757427635940,17.48458011,4328.9,4328.8,1e-08]
[1757427636147,17.69859306,4328.9,4328.8,1e-08]
[1757427636468,20.69859306,4328.9,4328.8,1e-08]
[1757427637374,21.19148021,4328.9,4328.8,1e-08]
[1757427638191,21.19148021,4328.9,4328.8,0.00200001]
[1757427638359,20.69859306,4328.9,4328.8,0.00200001]
[1757427640766,0.792,4328.1,4327.9,0.002]
[1757427640974,7.22211598,4328.0,4327.9,0.002]
[1757427641125,7.54763103,4328.0,4327.9,0.002]
[1757427642791,7.33385915,4328.0,4327.9,0.002]
[1757427642989,7.20553604,4328.0,4327.9,0.002]
[1757427643792,7.20553604,4328.0,4327.9,0.3083]
[1757427643992,7.54759128,4328.0,4327.9,0.3083]
[1757427644296,7.20553604,4328.0,4327.9,0.002]
[1757427644844,7.49923604,4328.0,4327.9,0.002]
[1757427645057,9.26673162,4328.0,4327.9,0.002]
[1757427645258,3.10258943,4327.9,4327.8,1e-08]
[1757427645486,4.77116362,4327.9,4327.8,1e-08]
[1757427645731,5.52168368,4327.9,4327.8,1e-08]
[1757427645875,6.77803522,4327.9,4327.8,1e-08]
[1757427647595,2.31128781,4326.6,4325.6,1.3799]
[1757427647751,3.10349738,4326.2,4325.6,1.8205]
[1757427647964,7.34728401,4326.2,4325.6,1.8205]
[1757427648165,7.20249738,4326.2,4326.1,0.3463]
[1757427649515,4.891,4326.2,4326.1,1.7262]
[1757427649721,7.20249738,4326.2,4326.1,1.7262]
[1757427650189,4.89,4326.2,4326.1,2.1668]
[1757427650431,4.08433766,4326.5,4326.1,2.1668]
[1757427650731,0.792,4326.3,4326.2,1.8205]
[1757427650931,4.098,4326.4,4326.3,1.3799]
[1757427651085,4.89,4326.4,4326.3,1.6862]
[1757427651290,4.89,4326.4,4326.3,2.1268]
[1757427652716,0.792,4326.4,4326.3,2.1268]
[1757427652887,0.792,4326.4,4326.3,4.43824395]
[1757427653093,0.792,4326.4,4326.3,2.80577747]
[1757427653413,0.792,4326.4,4326.3,2.1268]
[1757427654719,0.792,4326.4,4326.3,4.43824395]
[1757427654919,0.792,4326.4,4326.3,2.1268]
[1757427655320,0.792,4326.4,4326.3,1.6862]
[1757427655580,4.888,4326.4,4326.3,1.6862]
[1757427655871,4.888,4326.4,4326.3,1.6882]
[1757427656769,8.45529053,4326.4,4326.3,0.002]
[1757427656971,14.53819053,4326.4,4326.3,0.002]
[1757427657153,14.87922543,4326.4,4326.3,0.002]
[1757427658073,9.47332543,4326.4,4326.3,0.002]
[1757427658240,13.56732543,4326.4,4326.3,0.002]
[1757427658764,13.09392543,4326.4,4326.3,0.002]
[1757427658981,8.99992543,4326.4,4326.3,0.002]
[1757427659142,13.56732543,4326.4,4326.3,0.002]
[1757427659873,14.87722543,4326.4,4326.3,0.002]
[1757427660051,14.08522543,4326.4,4326.3,0.002]
[1757427660829,8.70622543,4326.4,4326.3,0.002]
[1757427660994,8.70622543,4326.4,4326.3,0.3083]
[1757427660995,1.90089336,4326.4,4326.3,0.3083]
[1757427661139,8.94449053,4326.4,4326.3,0.002]
[1757427661448,9.73649053,4326.4,4326.3,0.002]
[1757427662079,9.73569053,4326.4,4326.3,0.002]
[1757427662739,9.86364136,4326.4,4326.3,0.002]
[1757427662955,6.24924269,4326.4,4326.3,0.002]
[1757427663140,5.95554269,4326.4,4326.3,0.2994]
[1757427663345,5.95554269,4326.4,4326.3,0.002]
[1757427663541,1.7722,4326.4,4326.3,2.0379]
[1757427663773,8.17559053,4326.4,4326.3,2.0379]
[1757427663996,1.7722,4326.4,4326.3,2.0379]
[1757427664167,6.6562,4326.4,4326.3,2.0379]
[1757427664770,9.43071055,4327.7,4326.3,2.0379]
[1757427664771,1.774,4327.2,4326.3,2.0379]
[1757427664975,4.092,4327.1,4326.4,1.7385]
[1757427665303,4.091,4327.2,4327.0,0.2974]
[1757427665483,4.091,4327.3,4327.1,1.7385]
[1757427665824,3.10307607,4327.0,4326.4,0.4489]
[1757427666131,2.31117941,4326.8,4326.3,0.002]
[1757427666411,0.792,4326.6,4326.4,1.2896]
[1757427666567,0.792,4326.6,4326.5,1.2896]
[1757427666773,3.10328368,4326.6,4326.5,1.2896]
[1757427666976,3.10339053,4326.4,4326.3,0.002]
[1757427667176,0.792,4326.4,4326.3,0.002]
[1757427667420,0.792,4326.4,4326.3,0.2994]
[1757427667571,0.792,4326.4,4326.3,1.589]
[1757427667921,3.10339053,4326.4,4326.3,0.002]
[1757427668083,4.35388127,4326.4,4326.3,0.002]
[1757427668419,4.81126121,4326.4,4326.3,0.002]
[1757427668620,6.21969902,4326.4,4326.3,0.002]
[1757427669208,8.57109902,4326.4,4326.3,0.002]
[1757427669382,9.22563242,4326.4,4326.3,0.002]
[1757427669584,4.40733242,4326.4,4326.3,0.002]
[1757427669798,7.3206607,4326.4,4326.3,0.002]
[1757427670024,0.92027017,4326.4,4326.3,0.2994]
[1757427670336,4.88,4326.4,4326.3,2.0379]
[1757427670827,0.792,4326.4,4326.3,1.589]
[1757427670981,4.88,4326.4,4326.3,2.0379]
[1757427671186,4.88,4326.4,4326.3,1.589]
[1757427671407,4.88,4326.4,4326.3,2.0379]
[1757427671615,0.792,4326.4,4326.3,2.0379]
[1757427671884,1.774,4327.1,4326.4,2.31134845]
[1757427671885,4.088,4327.0,4326.4,2.31134845]
[1757427672128,2.75132693,4328.1,4326.3,2.24569]
[1757427672129,2.33565311,4327.8,4326.9,0.2974]
[1757427672294,2.3107496,4327.6,4327.0,1.2896]
[1757427672484,2.3107496,4327.6,4326.3,0.002]
[1757427672485,3.10339053,4326.4,4326.3,0.002]
[1757427672684,0.792,4326.4,4326.3,0.002]
[1757427672882,0.792,4326.4,4326.3,1.589]
[1757427673087,3.10339053,4326.4,4326.3,1.589]
[1757427673338,0.792,4326.4,4326.3,1.589]
[1757427673643,3.10339053,4326.4,4326.3,0.002]
[1757427673822,4.11092958,4326.4,4326.3,0.002]
[1757427674005,4.68014656,4326.4,4326.3,0.002]
[1757427674838,4.23934656,4326.4,4326.3,0.002]
[1757427675128,4.89435534,4326.4,4326.3,0.002]
[1757427676636,4.45355534,4326.4,4326.3,0.002]
[1757427677039,4.89435534,4326.4,4326.3,0.002]
[1757427678108,4.45355534,4326.4,4326.3,0.002]
[1757427678613,3.44601629,4326.4,4326.3,0.002]
[1757427678934,3.75109623,4326.4,4326.3,0.002]
[1757427679139,3.44601629,4326.4,4326.3,0.002]
[1757427679307,3.44601629,4326.4,4326.3,0.2994]
[1757427679710,3.75109623,4326.4,4326.3,0.002]
[1757427679951,5.20683744,4326.4,4326.3,0.002]
[1757427680113,6.4870575,4326.4,4326.3,0.002]
[1757427683109,5.1902575,4326.4,4326.3,0.002]
[1757427683315,3.9574575,4326.4,4326.3,0.002]
[1757427683543,6.73601629,4326.4,4326.3,0.002]
[1757427683777,7.81651629,4326.4,4326.3,0.002]
[1757427683980,8.25731629,4326.4,4326.3,0.002]
[1757427684278,6.73601629,4326.4,4326.3,0.2994]
[1757427684477,7.81651629,4326.4,4326.3,0.002]
[1757427684710,8.87337951,4326.4,4326.3,0.002]
[1757427685099,9.31417951,4326.4,4326.3,0.002]
[1757427685599,10.61097951,4326.4,4326.3,0.002]
[1757427686507,9.31417951,4326.4,4326.3,0.002]
[1757427686814,8.58387951,4326.4,4326.3,0.2994]
[1757427687104,7.52701629,4326.4,4326.3,0.2994]
[1757427687311,7.52701629,4326.4,4326.3,1.589]
[1757427687910,7.39859931,4326.4,4326.3,0.2994]
[1757427688089,7.39779931,4326.4,4326.3,1.589]
[1757427688475,7.39779931,4326.4,4326.3,0.002]
[1757427688679,8.36871083,4326.4,4326.3,0.002]
[1757427688876,8.78576482,4326.4,4326.3,0.002]
[1757427689407,9.22656482,4326.4,4326.3,0.002]
[1757427689904,10.52336482,4326.4,4326.3,0.002]
[1757427690202,9.22656482,4326.4,4326.3,0.002]
[1757427690400,8.78376482,4326.4,4326.3,0.002]
[1757427690562,8.49526482,4326.4,4326.3,0.002]
[1757427690762,7.5243533,4326.4,4326.3,0.2994]
[1757427690968,7.5243533,4326.4,4326.3,0.002]
[1757427691385,3.4453533,4326.4,4326.3,0.2994]
[1757427691596,7.31014452,4326.4,4326.3,1.6441]
[1757427691786,7.5243533,4326.4,4326.3,0.002]
[1757427692274,7.8367533,4326.4,4326.3,0.002]
[1757427692478,7.8367533,4326.4,4325.8,0.027]
[1757427692479,0.792,4325.9,4325.8,0.027]
[1757427692685,8.95665768,4325.9,4325.8,0.027]
[1757427692878,10.04622045,4325.9,4325.8,0.027]
[1757427694211,9.61182045,4325.9,4325.8,0.027]
[1757427694409,10.04124079,4325.9,4325.8,0.027]
[1757427696131,9.72584079,4325.9,4325.8,0.027]
[1757427698134,10.03824079,4325.9,4325.8,0.027]
[1757427698312,10.47264079,4325.9,4325.8,0.027]
[1757427698541,10.03824079,4325.9,4325.8,0.027]
[1757427699116,9.72584079,4325.9,4325.8,0.027]
[1757427699317,5.22042045,4325.9,4325.8,1.6663]
[1757427699559,9.29642045,4325.9,4325.8,1.6663]
[1757427699774,9.60882045,4325.9,4325.8,0.027]
[1757427700151,10.04322045,4325.9,4325.8,0.027]
[1757427700445,10.04196555,4325.9,4325.8,0.027]
[1757427700675,11.1920715,4325.9,4325.8,0.027]
[1757427700973,9.29516555,4325.9,4325.8,0.3216]
[1757427701129,9.29516555,4325.9,4325.8,1.6663]
[1757427701329,9.29516555,4325.9,4325.8,0.3216]
[1757427701529,9.29516555,4325.9,4325.8,0.027]
[1757427701952,5.21916555,4325.9,4325.8,0.027]
[1757427702252,9.29316555,4325.9,4325.8,0.027]
[1757427702431,10.45364066,4325.9,4325.8,0.027]
[1757427703082,10.45364066,4325.9,4325.8,0.3216]
[1757427703281,9.1641001,4325.9,4325.8,1.6663]
[1757427703587,5.0911001,4325.9,4325.8,1.6663]
[1757427703803,9.1641001,4325.9,4325.8,1.6663]
[1757427704084,9.29236776,4325.9,4325.8,1.6663]
[1757427704576,9.1641001,4325.9,4325.8,1.6663]
[1757427704888,10.75230434,4325.9,4325.8,0.027]
[1757427705029,11.18670434,4325.9,4325.8,0.027]
[1757427705584,3.10387145,4325.5,4325.4,0.002]
[1757427705735,7.17587145,4325.5,4325.4,0.002]
[1757427706073,7.92267145,4325.5,4325.4,0.002]
[1757427706257,8.94611505,4325.5,4325.4,0.002]
[1757427707063,0.792,4325.4,4324.8,1e-08]
[1757427707241,0.792,4325.2,4324.8,1e-08]
[1757427707442,3.41659218,4324.9,4324.8,1e-08]
[1757427707639,11.43198933,4324.9,4324.8,1e-08]
[1757427707946,13.22860939,4324.9,4324.8,1e-08]
[1757427708336,13.57054279,4324.9,4324.8,1e-08]
[1757427709571,12.19174279,4324.9,4324.8,1e-08]
[1757427710337,12.19074279,4324.9,4324.8,1e-08]
[1757427710671,13.56954279,4324.9,4324.8,1e-08]
[1757427710977,6.10424565,4324.8,4324.1,0.04]
[1757427711182,3.10456648,4324.2,4324.1,0.04]
[1757427711377,0.792,4324.1,4323.8,1e-08]
[1757427711581,3.10472693,4323.9,4323.8,1e-08]
[1757427711783,3.31843531,4323.9,4323.8,1e-08]
[1757427712442,4.19308787,4323.9,4323.8,1e-08]
[1757427712666,5.21653147,4323.9,4323.8,1e-08]
[1757427713279,5.08867891,4323.9,4323.8,1e-08]
[1757427713580,5.21645742,4323.9,4323.8,1e-08]
[1757427714387,5.08787891,4323.9,4323.8,1e-08]
[1757427714595,6.5943947,4323.9,4323.8,1e-08]
[1757427714753,6.5943947,4323.9,4323.6,0.002]
[1757427714754,2.31278042,4323.8,4323.6,0.002]
[1757427714943,7.32623106,4323.7,4323.6,0.002]
[1757427715285,8.2701595,4323.7,4323.6,0.002]
[1757427715495,9.43525112,4323.7,4323.6,0.002]
[1757427715640,9.64803862,4323.7,4323.6,0.002]
[1757427715990,9.64803862,4323.7,4322.8,0.027]
[1757427715991,2.3129737,4323.5,4322.8,0.027]
[1757427716193,0.792,4323.2,4322.8,0.027]
[1757427716481,7.6982889,4323.2,4322.8,0.027]
[1757427716782,8.1326889,4323.2,4322.8,0.027]
[1757427716986,4.0646889,4323.2,4322.8,0.027]
[1757427717311,3.3178889,4323.2,4322.8,0.027]
[1757427717484,0.792,4323.2,4323.1,1.6793]
[1757427717645,7.1731014,4323.2,4323.1,2.1406]
[1757427717986,3.1051014,4323.2,4323.1,1.6793]
[1757427718168,7.1731014,4323.2,4323.1,1.6793]
[1757427718372,7.1731014,4323.2,4323.1,0.3346]
[1757427718944,4.86,4323.2,4323.1,0.3346]
[1757427719147,1.775,4323.4,4323.1,2.1406]
[1757427719357,2.412,4323.3,4323.2,1.806]
[1757427719588,4.859,4323.3,4323.2,1.806]
[1757427719758,4.067,4323.3,4323.2,2.1006]
[1757427720284,4.859,4323.3,4323.2,1.6393]
[1757427720850,2.31267573,4324.0,4323.2,4.41366375]
[1757427721079,2.31289175,4323.6,4323.3,1.806]
[1757427721280,7.17095029,4323.5,4323.4,1.806]
[1757427721480,3.1051014,4323.2,4323.1,0.04]
[1757427721793,8.96268134,4323.2,4323.1,0.04]
[1757427722002,10.58385897,4323.2,4323.1,0.04]
[1757427722205,11.03825897,4323.2,4323.1,0.04]
[1757427722525,3.10526193,4322.9,4322.8,0.027]
[1757427722682,7.18784187,4322.9,4322.8,0.027]
[1757427722874,10.3504533,4322.9,4322.8,0.027]
[1757427723534,10.13775723,4322.9,4322.8,1e-08]
[1757427723682,10.3504456,4322.9,4322.8,1e-08]
[1757427723882,9.0073456,4322.9,4322.8,1e-08]
[1757427724316,10.3504456,4322.9,4322.8,1e-08]
[1757427724474,13.3504456,4322.9,4322.8,1e-08]
[1757427724880,12.0063456,4322.9,4322.8,1e-08]
[1757427725822,0.21268837,4322.9,4322.8,1.59630001]
[1757427726119,2.23160492,4324.8,4322.8,2.02610001]
[1757427726120,1.24,4324.1,4322.8,2.02610001]
[1757427726290,0.09253261,4324.3,4322.9,1.75823261]
[1757427726291,2.40505796,4324.3,4322.9,1.75823261]
[1757427726497,0.15251415,4324.8,4323.0,2.11752326]
[1757427726498,2.276,4324.2,4323.0,2.11752326]
[1757427726722,0.36503774,4324.8,4323.1,1.3053]
[1757427726723,4.53497994,4324.1,4323.1,1.3053]
[1757427727021,4.53497994,4324.1,4322.8,1.77500001]
[1757427727022,0.2992,4323.2,4322.8,1e-08]
[1757427727220,0.792,4322.9,4322.8,1e-08]
[1757427727425,3.93130277,4322.9,4322.8,1e-08]
[1757427727592,4.24708271,4322.9,4322.8,1e-08]
[1757427727986,8.76548271,4322.9,4322.8,1e-08]
[1757427728210,8.74890277,4322.9,4322.8,1e-08]
[1757427728413,8.96151875,4322.9,4322.8,1e-08]
[1757427728654,10.30461875,4322.9,4322.8,1e-08]
[1757427729153,4.14391875,4322.9,4322.8,1e-08]
[1757427729461,4.063,4322.9,4322.8,1.59630001]
[1757427729757,7.16826193,4322.9,4322.8,1e-08]
[1757427732061,7.16826193,4322.9,4322.8,0.29100001]
[1757427732259,4.063,4322.9,4322.8,2.02610001]
[1757427732441,7.16826193,4322.9,4322.8,2.02610001]
[1757427732757,4.855,4322.9,4322.8,2.02610001]
[1757427732915,4.854,4322.9,4322.8,2.02610001]
[1757427733115,1.775,4323.2,4322.8,2.22871001]
[1757427733357,1.89,4323.1,4322.9,1.7351]
[1757427733545,0.792,4323.0,4322.9,1.7351]
[1757427733747,0.1152,4322.9,4322.8,0.20261001]
[1757427734263,0.1152,4322.9,4322.8,5.80692545]
[1757427734455,0.1152,4322.9,4322.8,5.02610001]
[1757427735017,0.1152,4322.9,4322.8,1.59630001]
[1757427735260,0.1152,4322.9,4322.8,1e-08]
[1757427735261,3.22046193,4322.9,4322.8,1e-08]